bitfinex/quotes_SOLUSD_20250308
["timestamp","ask_amount","ask_price","bid_price","bid_amount"]
[1741419684988,20.6944052,139.42,139.4,0.033]
[1741419685679,32.17115406,139.41,139.4,0.033]
[1741419687390,39.34415406,139.41,139.4,0.033]
[1741419696089,189.57685406,139.41,139.37,0.033]
[1741419696269,32.17115406,139.38,139.37,0.033]
[1741419698390,39.34575406,139.38,139.37,0.033]
[1741419704379,42.90113726,139.38,139.37,0.033]
[1741419705371,125.20113726,139.38,139.37,0.033]
[1741419708707,13.5215052,139.34,139.31,1.6408]
[1741419709024,13.5215052,139.35,139.31,1.6408]
[1741419711497,7.1766,139.34,139.31,1.6408]
[1741419712071,13.5215052,139.36,139.31,8.8189]
[1741419712383,20.6973052,139.36,139.31,1.6408]
[1741419716303,20.6973052,139.36,139.31,1.6738]
[1741419716711,13.5215052,139.35,139.31,1.6738]
[1741419717710,20.6980052,139.35,139.31,1.6738]
[1741419719587,13.5215052,139.33,139.31,1.6738]
[1741419720400,20.6968052,139.37,139.31,22.3734052]
[1741419720815,13.5215052,139.36,139.31,8.8519]
[1741419721027,13.5215052,139.36,139.31,1.6738]
[1741419721918,13.5215052,139.35,139.31,1.6738]
[1741419722090,13.5215052,139.33,139.31,1.6738]
[1741419722290,13.5215052,139.34,139.31,1.6738]
[1741419723005,13.5215052,139.33,139.31,1.6738]
[1741419723814,4.28573958,139.32,139.31,1.6738]
[1741419724118,11.46343958,139.32,139.31,1.6738]
[1741419724306,24.98494478,139.32,139.31,1.6738]
[1741419725308,24.98494478,139.32,139.31,0.033]
[1741419725601,43.63459364,139.32,139.31,0.033]
[1741419725929,24.98494478,139.32,139.31,0.033]
[1741419726100,43.63459364,139.32,139.31,0.033]
[1741419726514,24.98494478,139.32,139.31,0.033]
[1741419728699,43.63459364,139.32,139.31,0.033]
[1741419729216,125.93459364,139.32,139.31,0.033]
[1741419730506,147.72061444,139.32,139.3,0.033]
[1741419730718,67.607526,139.31,139.3,0.033]
[1741419731904,74.785726,139.31,139.3,0.033]
[1741419732511,50.0,139.3,139.28,0.033]
[1741419732717,38.37115406,139.29,139.28,0.033]
[1741419733545,42.65689364,139.29,139.28,0.033]
[1741419734229,49.83609364,139.29,139.28,0.033]
[1741419737046,51.45739364,139.29,139.28,0.033]
[1741419738722,54.99852011,139.29,139.28,0.033]
[1741419739937,53.37722011,139.29,139.28,0.033]
[1741419741229,17.80724478,139.29,139.28,0.033]
[1741419741427,4.28573958,139.29,139.28,0.033]
[1741419741741,17.80724478,139.29,139.28,0.033]
[1741419744149,24.98644478,139.29,139.28,0.033]
[1741419745540,17.80724478,139.29,139.28,0.033]
[1741419748244,4.28573958,139.29,139.28,0.033]
[1741419749833,0.03,139.3,139.28,0.033]
[1741419750048,0.03,139.3,139.28,7.2127]
[1741419750755,0.03,139.3,139.28,0.033]
[1741419754040,0.03,139.3,139.28,7.2127]
[1741419756454,0.03,139.3,139.29,15.1251052]
[1741419757759,0.03,139.3,139.29,22.3043052]
[1741419758140,0.03,139.3,139.29,8.7828]
[1741419760540,0.03,139.3,139.29,1.6036]
[1741419763265,4.3160271,139.3,139.29,1.6036]
[1741419765450,4.3160271,139.3,139.29,8.7828]
[1741419766170,0.03,139.3,139.29,8.7828]
[1741419766374,0.03,139.3,139.29,1.6036]
[1741419771182,0.03,139.3,139.29,8.7828]
[1741419771676,0.03,139.3,139.29,40.95395406]
[1741419772182,0.03,139.3,139.29,22.3043052]
[1741419772477,0.03,139.3,139.29,8.7828]
[1741419772951,0.03,139.3,139.29,22.3043052]
[1741419777163,0.03,139.3,139.29,40.95395406]
[1741419777474,0.03,139.37,139.29,58.90205406]
[1741419777781,0.03,139.37,139.32,13.5215052]
[1741419778586,0.03,139.37,139.33,7.1772]
[1741419779780,4.28540019,139.36,139.33,7.1772]
[1741419780560,4.28540019,139.36,139.31,13.5215052]
[1741419780773,11.46110019,139.36,139.31,20.6997052]
[1741419781080,24.98260539,139.36,139.31,7.1782]
[1741419781673,13.5215052,139.35,139.3,6.2]
[1741419781879,17.80690539,139.35,139.3,6.2]
[1741419783581,4.28540019,139.34,139.3,6.2]
[1741419784480,4.28540019,139.34,139.3,13.3786]
[1741419785391,4.28540019,139.33,139.3,13.3786]
[1741419786288,4.28540019,139.33,139.3,7.1786]
[1741419786493,4.28540019,139.32,139.3,7.1786]
[1741419787197,4.28540019,139.32,139.28,7.2126]
[1741419787198,17.80690539,139.32,139.28,7.2126]
[1741419787690,4.28540019,139.31,139.28,7.2126]
[1741419788072,4.28540019,139.31,139.3,0.033]
[1741419792184,24.98510539,139.31,139.3,0.033]
[1741419794282,17.80690539,139.31,139.3,0.033]
[1741419795386,24.98510539,139.31,139.3,0.033]
[1741419801905,25.01510539,139.31,139.3,0.033]
[1741419807313,4.31540019,139.31,139.3,0.033]
[1741419807486,4.31540019,139.31,139.3,13.5545052]
[1741419808394,4.31540019,139.31,139.3,32.20415406]
[1741419809419,4.31540019,139.31,139.3,39.38285406]
[1741419809626,4.31540019,139.31,139.3,20.7332052]
[1741419809799,0.03,139.31,139.3,20.7332052]
[1741419812001,0.03,139.31,139.3,51.18285406]
[1741419812205,0.03,139.35,139.33,13.5215052]
[1741419813306,0.03,139.35,139.32,13.5215052]
[1741419813524,0.03,139.35,139.33,7.1772]
[1741419814402,0.03,139.35,139.33,20.6987052]
[1741419815110,0.03,139.35,139.34,13.5215052]
[1741419815724,0.03,139.35,139.34,20.6981052]
[1741419815929,0.03,139.35,139.34,7.1766]
[1741419816845,0.03,139.35,139.34,20.6981052]
[1741419818520,0.03,139.35,139.34,51.14775406]
[1741419820045,0.03,139.37,139.35,18.64964886]
[1741419820342,0.03,139.37,139.36,33.69385406]
[1741419820546,0.03,139.37,139.36,45.49385406]
[1741419822449,0.03,139.37,139.36,52.66945406]
[1741419825341,0.0001,139.37,139.36,52.66945406]
[1741419825928,0.0001,139.37,139.36,106.75547486]
[1741419826130,0.03,139.4,139.37,18.64964886]
[1741419826326,0.03,139.4,139.39,13.5215052]
[1741419828251,0.03,139.4,139.39,20.6956052]
[1741419830255,0.03,139.4,139.39,32.4956052]
[1741419830557,0.03,139.4,139.39,51.14525406]
[1741419835639,0.03,139.41,139.39,51.14525406]
[1741419835838,0.03,139.41,139.4,33.24667016]
[1741419836055,0.03,139.41,139.4,45.04667016]
[1741419836766,0.0001,139.41,139.4,52.22027016]
[1741419837564,0.0001,139.41,139.4,51.14475406]
[1741419838069,0.0001,139.45,139.44,1.5106]
[1741419838251,0.0001,139.45,139.44,52.7567957]
[1741419838953,0.0001,139.45,139.44,59.9282957]
[1741419839153,0.0001,139.45,139.44,58.85325406]
[1741419839755,0.03,139.49,139.45,20.64964886]
[1741419839961,0.03,139.49,139.48,32.17115406]
[1741419840274,0.03,139.49,139.48,43.97115406]
[1741419841066,0.03,139.49,139.48,51.14055406]
[1741419841370,0.03,139.49,139.48,11.8]
[1741419841769,0.03,139.49,139.48,18.9694]
[1741419842172,0.03,139.49,139.46,25.3215052]
[1741419842343,0.03,139.49,139.45,20.6921052]
[1741419842543,0.03,139.49,139.46,13.5215052]
[1741419842849,0.03,139.49,139.47,13.5215052]
[1741419843056,0.03,139.49,139.48,20.6909052]
[1741419843770,0.03,139.49,139.48,39.34055406]
[1741419843942,0.03,139.49,139.48,51.14055406]
[1741419845368,0.03,139.49,139.48,59.78514358]
[1741419845670,0.03,139.49,139.48,58.71024423]
[1741419845868,0.03,139.49,139.48,59.78506157]
[1741419846054,0.03,139.49,139.48,58.71024423]
[1741419846974,0.0001,139.49,139.48,58.71024423]
[1741419847474,0.0001,139.49,139.48,59.78500582]
[1741419849566,0.03,139.5,139.49,20.20804886]
[1741419849567,0.0001,139.5,139.49,20.20804886]
[1741419849877,0.0001,139.51,139.49,47.47924423]
[1741419850172,0.0001,139.51,139.5,40.81548647]
[1741419851474,0.0001,139.51,139.5,46.90924423]
[1741419852778,0.0001,139.51,139.5,13.3484]
[1741419855373,0.0001,139.51,139.5,34.43959537]
[1741419855572,0.0001,139.51,139.5,6.18]
[1741419855776,0.0001,139.51,139.49,7.1688]
[1741419856082,0.0001,139.51,139.48,7.1693]
[1741419856263,0.0001,139.51,139.47,13.3498]
[1741419856767,0.0001,139.51,139.47,34.44099537]
[1741419858264,0.0001,139.51,139.48,21.09119537]
[1741419858784,24.23024369,139.54,139.48,21.09119537]
[1741419858987,21.09119537,139.54,139.48,21.09119537]
[1741419860276,21.09119537,139.54,139.49,7.1689]
[1741419862089,27.74559537,139.54,139.49,7.1689]
[1741419862989,21.09119537,139.53,139.47,34.47369537]
[1741419863162,13.8208,139.54,139.47,13.3825]
[1741419863163,21.09119537,139.52,139.47,13.3825]
[1741419864085,28.25869537,139.52,139.47,13.3825]
[1741419864789,28.25869537,139.52,139.47,6.213]
[1741419864790,21.09119537,139.51,139.47,6.213]
[1741419865773,21.09119537,139.51,139.47,0.033]
[1741419865971,21.09119537,139.49,139.47,0.033]
[1741419866393,28.72079537,139.5,139.47,0.033]
[1741419866704,21.09119537,139.49,139.47,0.033]
[1741419867295,21.14260312,139.5,139.47,0.033]
[1741419867670,13.51300312,139.49,139.47,0.033]
[1741419870598,13.51300312,139.48,139.47,0.033]
[1741419871105,13.51300312,139.49,139.47,0.033]
[1741419871301,21.14260312,139.5,139.47,0.033]
[1741419871804,7.6296,139.5,139.47,0.033]
[1741419872808,21.14260312,139.5,139.47,0.033]
[1741419874112,13.51300312,139.51,139.47,0.033]
[1741419874308,13.51300312,139.52,139.47,0.033]
[1741419874602,13.51300312,139.48,139.47,0.033]
[1741419875091,20.01850312,139.48,139.47,0.033]
[1741419876407,27.18790312,139.48,139.47,0.033]
[1741419876990,28.66190312,139.48,139.47,0.033]
[1741419877295,21.49250312,139.48,139.47,0.033]
[1741419880111,20.01850312,139.48,139.47,0.033]
[1741419880283,13.51300312,139.49,139.47,0.033]
[1741419881510,13.51300312,139.48,139.47,0.033]
[1741419881914,13.51300312,139.49,139.47,0.033]
[1741419882583,13.51300312,139.52,139.47,0.033]
[1741419882790,13.51300312,139.53,139.47,13.54600312]
[1741419882990,13.51300312,139.5,139.47,0.033]
[1741419883195,13.51300312,139.49,139.47,0.033]
[1741419883403,82.3,139.53,139.47,0.033]
[1741419884206,13.51300312,139.5,139.47,0.033]
[1741419884410,13.51300312,139.48,139.47,0.033]
[1741419884599,13.51300312,139.49,139.47,0.033]
[1741419884929,13.51300312,139.5,139.47,0.033]
[1741419885728,19.69300312,139.52,139.47,0.033]
[1741419886399,13.51300312,139.51,139.47,0.033]
[1741419887019,13.51300312,139.5,139.47,0.033]
[1741419887323,21.11264087,139.5,139.47,0.033]
[1741419889516,89.467,139.53,139.47,0.033]
[1741419889517,21.11264087,139.52,139.47,0.033]
[1741419890516,21.11264087,139.5,139.47,0.033]
[1741419892431,21.11264087,139.48,139.47,0.033]
[1741419894703,28.28204087,139.48,139.47,0.033]
[1741419895525,21.11264087,139.48,139.47,0.033]
[1741419896326,21.11264087,139.49,139.47,0.033]
[1741419897429,21.11264087,139.5,139.47,0.033]
[1741419897904,21.11264087,139.49,139.47,0.033]
[1741419899134,21.11264087,139.51,139.47,0.033]
[1741419899629,21.11264087,139.5,139.47,0.033]
[1741419899932,21.11264087,139.49,139.47,0.033]
[1741419900130,21.11264087,139.5,139.47,0.033]
[1741419900330,21.11264087,139.51,139.47,0.033]
[1741419901432,7.1669,139.53,139.47,0.033]
[1741419901814,21.11264087,139.49,139.47,0.033]
[1741419902436,21.11264087,139.5,139.47,0.033]
[1741419903236,21.11264087,139.49,139.47,0.033]
[1741419903624,107.3861,139.52,139.47,0.033]
[1741419903625,21.11264087,139.48,139.47,0.033]
[1741419904011,21.11264087,139.5,139.47,0.033]
[1741419904246,21.11264087,139.49,139.47,0.033]
[1741419906540,21.11264087,139.48,139.47,0.033]
[1741419909346,13.52182122,139.48,139.47,0.033]
[1741419910523,13.52182122,139.49,139.47,0.033]
[1741419910722,13.52182122,139.5,139.47,0.033]
[1741419911413,107.23188413,139.52,139.47,0.033]
[1741419911414,13.52182122,139.48,139.47,0.033]
[1741419912320,13.52182122,139.5,139.47,0.033]
[1741419912834,13.52182122,139.49,139.47,0.033]
[1741419913213,21.1178637,139.49,139.47,0.033]
[1741419915346,28.2870637,139.49,139.47,0.033]
[1741419915647,21.1178637,139.48,139.47,0.033]
[1741419917330,28.2872637,139.48,139.47,0.033]
[1741419917652,103.4178637,139.5,139.47,0.033]
[1741419918125,21.1178637,139.48,139.47,0.033]
[1741419919522,100.68638413,139.5,139.47,0.033]
[1741419919523,21.1178637,139.49,139.47,0.033]
[1741419919841,103.4178637,139.5,139.47,0.033]
[1741419921052,21.1178637,139.49,139.47,0.033]
[1741419923947,21.1178637,139.48,139.47,0.033]
[1741419935265,13.51818245,139.48,139.47,0.033]
[1741419937268,20.68758245,139.48,139.47,0.033]
[1741419939063,13.51818245,139.48,139.47,0.033]
[1741419940242,20.68758245,139.48,139.47,0.033]
[1741419944172,39.33723131,139.48,139.47,0.033]
[1741419944971,20.68758245,139.48,139.47,0.033]
[1741419948169,95.81818245,139.49,139.47,0.033]
[1741419948677,13.51818245,139.48,139.47,0.033]
[1741419956685,20.68758245,139.48,139.47,0.033]
[1741419957479,13.51818245,139.48,139.47,0.033]
[1741419962289,20.68758245,139.48,139.47,0.033]
[1741419967605,7.1694,139.48,139.47,0.033]
[1741419967992,95.81818245,139.49,139.47,0.033]
[1741419968301,82.3,139.49,139.47,0.033]
[1741419969293,95.81818245,139.49,139.47,0.033]
[1741419969903,102.98718245,139.49,139.47,0.033]
[1741419970106,20.68718245,139.49,139.47,0.033]
[1741419971010,13.51818245,139.49,139.47,0.033]
[1741419977530,13.51818245,139.48,139.47,0.033]
[1741419979630,7.169,139.49,139.47,0.033]
[1741419979631,13.51818245,139.49,139.47,0.033]
[1741419981231,13.51818245,139.48,139.47,0.033]
[1741419983333,20.68758245,139.48,139.47,0.033]
[1741419984929,95.81818245,139.49,139.47,0.033]
[1741419985121,82.3,139.49,139.47,0.033]
[1741419987730,102.98728245,139.49,139.47,0.033]
[1741419987934,13.51818245,139.48,139.47,0.033]
[1741419988430,102.98728245,139.49,139.47,0.033]
[1741419994715,13.51818245,139.48,139.47,0.033]
[1741419996624,20.68758245,139.48,139.47,0.033]
[1741419999618,102.98758245,139.48,139.47,0.033]
[1741420005646,20.68758245,139.48,139.47,0.033]
[1741420005839,31.90546658,139.48,139.47,0.033]
[1741420007739,50.55511544,139.48,139.47,0.033]
[1741420007930,68.64964886,139.46,139.44,0.033]
[1741420008138,13.51818245,139.45,139.44,0.033]
[1741420009047,20.68918245,139.45,139.44,0.033]
[1741420011447,24.35007652,139.45,139.44,0.033]
[1741420017648,42.99972538,139.45,139.44,0.033]
[1741420017841,13.51818245,139.43,139.41,1.6533]
[1741420018639,13.51818245,139.43,139.38,8.1784]
[1741420019139,7.1725,139.42,139.38,8.1784]
[1741420019527,13.51818245,139.39,139.38,1.5605]
[1741420020662,13.51818245,139.39,139.37,0.033]
[1741420020963,95.81818245,139.38,139.37,0.033]
[1741420021625,102.99278245,139.38,139.37,0.033]
[1741420032460,20.69278245,139.38,139.37,0.033]
[1741420032959,39.34243131,139.38,139.37,0.033]
[1741420035975,39.34243131,139.38,139.33,0.033]
[1741420036176,13.51818245,139.36,139.33,0.033]
[1741420037269,7.1761,139.35,139.33,0.033]
[1741420038567,20.69428245,139.35,139.33,0.033]
[1741420040549,7.1761,139.35,139.33,0.033]
[1741420041277,89.4761,139.35,139.33,0.033]
[1741420043969,152.99428245,139.35,139.33,0.033]
[1741420045478,156.59239631,139.35,139.33,0.033]
[1741420045662,89.4766,139.34,139.33,0.033]
[1741420048556,88.5,139.36,139.33,0.033]
[1741420051167,82.3,139.36,139.33,0.033]
[1741420052581,89.4758,139.36,139.33,0.033]
[1741420053280,82.3,139.36,139.33,0.033]
[1741420055884,89.4756,139.36,139.33,0.033]
[1741420058191,102.99378245,139.36,139.33,0.033]
[1741420060880,13.51818245,139.35,139.33,0.033]
[1741420062285,13.51818245,139.34,139.33,0.033]
[1741420062892,20.69478245,139.34,139.33,0.033]
[1741420065988,121.64443131,139.34,139.33,0.033]
[1741420066198,127.84443131,139.34,139.33,0.033]
[1741420067100,109.19478245,139.34,139.33,0.033]
[1741420067272,127.84443131,139.34,139.33,0.033]
[1741420071003,45.54443131,139.34,139.33,0.033]
[1741420079312,26.89478245,139.34,139.33,0.033]
[1741420079526,13.3766,139.34,139.33,0.033]
[1741420080502,26.89478245,139.34,139.33,0.033]
[1741420081820,45.54443131,139.34,139.33,0.033]
[1741420082725,45.54443131,139.34,139.33,0.0001]
[1741420083211,46.86094481,139.34,139.33,0.0001]
[1741420083729,68.64964886,139.32,139.31,0.0001]
[1741420083896,89.34553131,139.32,139.31,0.0001]
[1741420084521,89.34553131,139.32,139.3,0.033]
[1741420084716,32.16783131,139.31,139.3,0.033]
[1741420085507,39.34603131,139.31,139.3,0.033]
[1741420089455,42.87526636,139.31,139.3,0.033]
[1741420092618,145.78518245,139.29,139.28,0.033]
[1741420092799,69.71818245,139.29,139.28,0.033]
[1741420094625,76.89738245,139.29,139.28,0.033]
[1741420098036,38.36783131,139.29,139.28,0.033]
[1741420099112,88.36783131,139.29,139.28,0.033]
[1741420099322,38.36783131,139.29,139.28,0.033]
[1741420100410,26.89738245,139.29,139.28,0.033]
[1741420104738,95.54703131,139.29,139.24,1.6608]
[1741420105041,13.51818245,139.26,139.24,1.6608]
[1741420105220,13.51818245,139.25,139.24,1.6608]
[1741420105544,13.51818245,139.26,139.24,1.6608]
[1741420105909,13.51818245,139.25,139.24,1.6608]
[1741420106337,13.51818245,139.25,139.24,1.1608]
[1741420106635,13.51818245,139.25,139.23,0.033]
[1741420106842,7.1818,139.24,139.23,0.033]
[1741420108241,45.54963131,139.24,139.23,0.033]
[1741420108537,51.23427473,139.24,139.23,0.033]
[1741420111316,51.23427473,139.24,139.23,0.0001]
[1741420113117,106.62351803,139.24,139.23,0.0001]
[1741420114941,18.64964886,139.2,139.19,0.033]
[1741420115115,32.16783131,139.2,139.19,0.033]
[1741420117627,39.35173131,139.2,139.19,0.033]
[1741420120329,20.70208245,139.2,139.19,0.033]
[1741420120954,24.26114947,139.2,139.19,0.033]
[1741420122255,50.0,139.17,139.14,1.5661]
[1741420122457,63.51818245,139.15,139.09,0.033]
[1741420122664,13.51818245,139.12,139.09,0.033]
[1741420122840,13.51818245,139.11,139.09,0.033]
[1741420123530,20.70698245,139.11,139.09,0.033]
[1741420123862,20.70698245,139.11,139.09,1.8161743]
[1741420124251,95.81818245,139.1,139.09,1.8161743]
[1741420124948,6.2,139.11,139.09,1.8161743]
[1741420126574,82.3,139.12,139.09,1.8161743]
[1741420126776,95.81818245,139.12,139.09,1.8161743]
[1741420130167,82.3,139.12,139.09,1.8161743]
[1741420131869,82.3,139.16,139.1,13.51818245]
[1741420132042,82.3,139.16,139.12,13.51818245]
[1741420132947,82.3,139.16,139.11,13.51818245]
[1741420134271,82.3,139.16,139.11,20.70668245]
[1741420134865,89.486,139.16,139.11,13.51818245]
[1741420135355,82.3,139.16,139.11,13.51818245]
[1741420135543,89.486,139.16,139.11,20.70668245]
[1741420135744,89.486,139.16,139.11,13.51818245]
[1741420136268,89.486,139.16,139.11,20.70668245]
[1741420137379,89.516,139.16,139.11,20.70668245]
[1741420138370,103.03418245,139.16,139.1,13.51818245]
[1741420138576,103.03418245,139.16,139.1,20.70718245]
[1741420139073,103.03418245,139.16,139.1,22.49035675]
[1741420140667,89.516,139.16,139.1,22.49035675]
[1741420140877,103.03418245,139.16,139.1,15.30135675]
[1741420141573,89.516,139.16,139.1,1.7831743]
[1741420141781,13.51818245,139.14,139.1,1.7831743]
[1741420142000,13.51818245,139.12,139.1,1.7831743]
[1741420142150,13.51818245,139.11,139.1,1.7831743]
[1741420142475,82.3,139.12,139.1,1.7831743]
[1741420143147,7.1866,139.15,139.1,15.30135675]
[1741420145080,7.1866,139.15,139.1,1.7831743]
[1741420146678,13.51818245,139.14,139.1,1.7831743]
[1741420146995,82.16783131,139.11,139.09,0.033]
[1741420147281,102.01818245,139.1,139.09,0.033]
[1741420147458,38.36783131,139.1,139.09,0.033]
[1741420147660,18.64964886,139.07,139.0,15.01988245]
[1741420147875,20.0,139.03,139.0,15.01988245]
[1741420148370,20.0,139.03,139.0,14.51988245]
[1741420149182,20.0,139.02,138.96,6.5691]
[1741420149487,20.0,138.98,138.96,6.5691]
[1741420149786,20.0,138.98,138.96,20.08728245]
[1741420149989,20.0,138.98,138.96,20.12028245]
[1741420150365,20.0,138.98,138.96,6.6021]
[1741420152285,103.56650918,138.97,138.96,0.033]
[1741420152863,18.64964886,138.96,138.95,0.033]
[1741420153088,18.64964886,138.96,138.89,2.1100603]
[1741420153089,20.0,138.92,138.89,2.1100603]
[1741420153295,20.0,138.91,138.89,2.1100603]
[1741420153884,20.0,138.91,138.89,23.37656948]
[1741420154301,20.0,138.91,138.89,2.1100603]
[1741420157197,20.0,138.91,138.9,21.26650918]
[1741420160005,20.0,138.91,138.9,28.46590918]
[1741420162400,0.03,138.95,138.9,28.46590918]
[1741420162607,0.03,138.95,138.93,21.26650918]
[1741420162810,0.03,138.95,138.94,21.26650918]
[1741420163675,0.03,138.95,138.94,28.46380918]
[1741420164481,0.03,138.95,138.94,47.11345804]
[1741420168013,0.0001,138.95,138.94,47.11345804]
[1741420169277,20.0,139.0,138.95,18.64964886]
[1741420169478,20.0,139.01,138.99,21.26650918]
[1741420170204,82.3,139.07,139.0,21.26650918]
[1741420170384,20.0,139.04,139.02,21.26650918]
[1741420171510,20.0,139.04,139.03,7.1926]
[1741420173509,20.0,139.03,139.0,21.26650918]
[1741420173809,20.0,139.02,138.99,28.46120918]
[1741420175012,20.0,139.03,139.0,28.46050918]
[1741420175186,20.0,139.02,138.99,28.46110918]
[1741420175783,20.0,139.03,138.99,7.1946]
[1741420176205,20.0,139.02,138.98,22.90770918]
[1741420176415,20.0,139.02,138.98,30.10280918]
[1741420176790,20.0,139.02,138.98,8.8363]
[1741420177008,20.0,139.02,138.98,30.10280918]
[1741420179817,20.0,139.02,138.97,34.99090918]
[1741420179997,20.0,139.02,138.97,28.46210918]
[1741420180186,41.26650918,139.02,138.97,7.1956]
[1741420180619,41.26650918,139.02,138.95,8.7052]
[1741420180620,20.0,138.97,138.95,8.7052]
[1741420180915,20.0,138.97,138.95,1.5084]
[1741420181696,20.0,138.96,138.93,39.91615804]
[1741420182712,20.0,138.96,138.92,22.89170918]
[1741420183309,20.0,138.95,138.92,22.89170918]
[1741420184216,48.46250918,138.97,138.91,39.91615804]
[1741420184686,48.46250918,138.97,138.89,14.7640603]
[1741420184687,21.26650918,138.96,138.9,21.26650918]
[1741420185613,21.26650918,138.94,138.89,2.1100603]
[1741420185922,20.0,138.91,138.89,2.1100603]
[1741420186920,20.0,138.92,138.89,23.37656948]
[1741420188513,82.3,138.96,138.9,39.91615804]
[1741420188514,20.0,138.93,138.9,39.91615804]
[1741420188704,20.0,138.93,138.91,21.26650918]
[1741420190118,20.0,138.94,138.91,21.26650918]
[1741420190315,20.0,138.93,138.91,21.26650918]
[1741420190497,20.0,138.93,138.9,39.91615804]
[1741420192306,20.0,138.93,138.9,18.64964886]
[1741420192624,20.0,138.93,138.9,39.91615804]
[1741420193723,7.1957,138.97,138.92,21.26650918]
[1741420193919,20.0,138.94,138.93,21.26650918]
[1741420194511,20.0,138.94,138.92,21.26650918]
[1741420197015,27.1975,138.94,138.91,39.91615804]
[1741420197629,27.1975,138.94,138.9,39.91615804]
[1741420198731,27.1975,138.94,138.9,21.26650918]
[1741420198916,27.1975,138.94,138.89,23.37656948]
[1741420199614,27.1975,138.94,138.9,21.26650918]
[1741420201305,20.0,138.93,138.9,21.26650918]
[1741420201506,0.03,138.95,138.92,21.26650918]
[1741420201716,20.0,138.94,138.92,21.26650918]
[1741420202538,20.0,138.93,138.92,21.26650918]
[1741420202911,20.0,138.93,138.91,21.26650918]
[1741420203137,20.0,138.94,138.91,21.26650918]
[1741420203631,20.0,138.93,138.91,21.26650918]
[1741420204734,27.227,138.95,138.91,21.26650918]
[1741420204940,0.03,138.95,138.92,21.26650918]
[1741420205128,0.03,138.95,138.93,21.26650918]
[1741420205129,20.03,138.95,138.93,21.26650918]
[1741420205316,20.0,138.94,138.93,21.26650918]
[1741420205639,20.0,138.93,138.91,18.64964886]
[1741420205941,20.0,138.93,138.9,21.26650918]
[1741420206141,20.0,138.93,138.91,21.26650918]
[1741420207339,20.0,138.94,138.91,21.26650918]
[1741420207744,20.0,138.93,138.91,21.26650918]
[1741420208720,20.03,138.95,138.92,21.26650918]
[1741420209028,20.0,138.94,138.92,21.26650918]
[1741420211315,0.03,138.95,138.93,21.26650918]
[1741420211516,0.03,138.95,138.91,30.44964886]
[1741420211517,0.03,138.95,138.94,21.26650918]
[1741420212450,0.03,138.95,138.94,47.11345804]
[1741420214442,0.03,138.95,138.94,68.37996722]
[1741420214746,0.03,138.95,138.94,58.91345804]
[1741420219557,0.03,138.95,138.94,47.11345804]
[1741420220121,0.03,138.95,138.94,68.37996722]
[1741420220539,20.0,139.0,138.95,18.64964886]
[1741420220730,0.03,139.04,138.99,21.26650918]
[1741420220731,20.0,139.02,138.99,21.26650918]
[1741420220932,20.0,139.02,139.0,21.26650918]
[1741420221125,20.0,139.01,138.97,21.26650918]
[1741420221415,20.0,139.0,138.97,21.26650918]
[1741420221620,20.0,139.0,138.97,28.46220918]
[1741420222450,20.0,139.0,138.91,155.913]
[1741420222746,20.0,138.97,138.94,21.26650918]
[1741420223629,20.0,138.98,138.94,28.46360918]
[1741420223952,20.0,138.98,138.95,21.26650918]
[1741420224842,20.0,139.0,138.97,21.26650918]
[1741420225149,20.0,139.0,138.98,21.26650918]
[1741420225335,20.0,139.01,138.98,21.26650918]
[1741420225644,20.0,139.0,138.98,21.26650918]
[1741420225943,20.0,138.99,138.96,21.26650918]
[1741420227449,20.0,138.98,138.97,21.26650918]